bitfinex/quotes_SOLUSD_20241107
["timestamp","ask_amount","ask_price","bid_price","bid_amount"]
[1730954037837,13.25129912,189.87,189.82,2.10674757]
[1730954038010,13.25129912,189.87,189.8,7.75976765]
[1730954038333,13.25129912,189.87,189.81,2.10674561]
[1730954038626,13.25129912,189.87,189.82,2.10674561]
[1730954038838,13.25129912,189.87,189.8,7.75976765]
[1730954039338,13.25129912,189.87,189.81,2.10674614]
[1730954039533,13.25129912,189.87,189.82,2.10674614]
[1730954039729,13.25129912,189.87,189.83,2.10674614]
[1730954039910,13.25129912,189.87,189.81,2.10674614]
[1730954040232,13.25129912,189.87,189.82,2.10674614]
[1730954040414,13.25129912,189.87,189.83,2.10674614]
[1730954040616,13.25129912,189.87,189.81,2.1067368]
[1730954040835,13.25129912,189.87,189.82,2.1067368]
[1730954041132,13.25129912,189.87,189.83,2.1067368]
[1730954041320,13.25129912,189.87,189.81,2.1067368]
[1730954041519,13.25129912,189.87,189.82,2.106746]
[1730954041712,13.25129912,189.87,189.83,2.106746]
[1730954042031,5.49153147,189.87,189.8,7.75976765]
[1730954042210,5.49153147,189.87,189.81,2.10674833]
[1730954042409,5.49153147,189.87,189.82,2.10674833]
[1730954042635,5.49153147,189.87,189.83,2.10674833]
[1730954042827,5.49153147,189.87,189.8,7.75976765]
[1730954043127,5.49153147,189.87,189.81,2.10674638]
[1730954043437,7.75976765,189.86,189.82,2.10674638]
[1730954043607,7.75976765,189.86,189.83,2.10674638]
[1730954043810,7.75976765,189.86,189.79,7.75976765]
[1730954044015,7.75976765,189.86,189.8,2.10683185]
[1730954044234,7.75976765,189.86,189.81,2.10683185]
[1730954044429,7.75976765,189.85,189.82,2.10683185]
[1730954044728,7.75976765,189.85,189.83,2.10683185]
[1730954044910,7.75976765,189.84,189.76,23.776884]
[1730954045107,7.75976765,189.84,189.78,7.75976765]
[1730954045316,7.75976765,189.84,189.79,2.10683778]
[1730954045510,7.75976765,189.84,189.8,2.10683778]
[1730954045729,7.75976765,189.84,189.81,2.10683778]
[1730954046038,7.75976765,189.85,189.82,2.10683778]
[1730954046219,7.75976765,189.85,189.83,2.10683778]
[1730954046525,7.75976765,189.85,189.79,7.75976765]
[1730954046717,7.75976765,189.85,189.8,2.10683893]
[1730954047033,7.75976765,189.84,189.81,2.10683893]
[1730954047236,7.75976765,189.84,189.82,2.10683893]
[1730954047441,7.75976765,189.84,189.83,2.10683893]
[1730954047832,13.02726765,189.84,189.83,2.10683893]
[1730954048130,29.50416765,189.84,189.75,7.75976765]
[1730954048439,7.75976765,189.82,189.76,9.86672129]
[1730954048637,7.75976765,189.82,189.77,2.10695364]
[1730954048943,7.75976765,189.82,189.78,2.10694827]
[1730954049235,16.4769,189.84,189.79,9.86671592]
[1730954049544,16.4769,189.84,189.8,2.10694827]
[1730954049730,16.4769,189.84,189.81,2.10694827]
[1730954049931,16.4769,189.84,189.82,2.10694827]
[1730954050133,16.4769,189.84,189.83,2.10694827]
[1730954051340,16.4769,189.84,189.83,2.10690775]
[1730954052326,5.46545396,189.85,189.83,2.10690775]
[1730954052641,5.46545396,189.85,189.84,2.10690775]
[1730954053231,7.75976765,189.88,189.84,2.10690775]
[1730954053434,7.75976765,189.88,189.82,7.75976765]
[1730954053636,13.22851522,189.88,189.83,2.106844]
[1730954053827,13.22851522,189.88,189.84,2.106844]
[1730954054026,13.22851522,189.88,189.82,7.75976765]
[1730954054229,13.22851522,189.88,189.83,2.10686001]
[1730954054431,13.22851522,189.88,189.84,2.10686001]
[1730954054632,13.22851522,189.88,189.82,7.75976765]
[1730954054837,13.22851522,189.88,189.83,2.10686001]
[1730954055137,13.22851522,189.88,189.84,2.10686001]
[1730954055440,13.22851522,189.88,189.82,7.75976765]
[1730954055643,7.75976765,189.87,189.83,2.10685805]
[1730954055941,7.75976765,189.87,189.84,2.10685805]
[1730954056138,7.75976765,189.87,189.81,7.75976765]
[1730954056332,7.75976765,189.86,189.82,2.10686752]
[1730954056530,7.75976765,189.86,189.83,2.10686752]
[1730954056731,7.75976765,189.86,189.84,2.10686752]
[1730954056935,7.75976765,189.86,189.8,7.75976765]
[1730954057134,7.75976765,189.86,189.81,2.10686146]
[1730954057331,7.75976765,189.86,189.82,2.10686146]
[1730954057533,7.75976765,189.86,189.83,2.10686146]
[1730954057841,7.75976765,189.86,189.84,2.10686146]
[1730954058047,7.75976765,189.86,189.8,7.75976765]
[1730954058229,7.75976765,189.86,189.81,2.10688197]
[1730954058545,7.75976765,189.86,189.82,2.10688197]
[1730954058731,7.75976765,189.86,189.83,2.10688197]
[1730954058927,7.75976765,189.86,189.8,7.75976765]
[1730954059237,7.75976765,189.86,189.81,2.10688393]
[1730954059434,7.75976765,189.86,189.82,2.10688393]
[1730954059635,7.75976765,189.86,189.83,2.10688393]
[1730954059938,7.75976765,189.86,189.8,7.75976765]
[1730954059939,7.75976765,189.86,189.84,2.10688393]
[1730954060244,7.75976765,189.87,189.8,7.75976765]
[1730954060444,7.75976765,189.87,189.81,9.86665102]
[1730954060655,7.75976765,189.86,189.82,2.10688337]
[1730954060843,7.75976765,189.86,189.83,2.10688337]
[1730954061032,7.75976765,189.86,189.8,7.75976765]
[1730954061033,7.75976765,189.86,189.84,2.10688337]
[1730954061232,7.75976765,189.86,189.8,7.75976765]
[1730954061438,7.75976765,189.86,189.81,2.10687478]
[1730954061746,7.75976765,189.86,189.82,2.10687478]
[1730954061949,7.75976765,189.86,189.83,2.10687478]
[1730954062154,7.75976765,189.86,189.84,2.10687478]
[1730954062336,7.75976765,189.86,189.8,7.75976765]
[1730954062541,7.75976765,189.86,189.81,2.10688353]
[1730954062840,7.75976765,189.85,189.82,2.10688353]
[1730954063034,7.75976765,189.85,189.71,0.1]
[1730954063035,10.73514757,189.88,189.83,2.10688353]
[1730954063240,7.75976765,189.84,189.77,7.75976765]
[1730954063438,7.75976765,189.83,189.78,2.10692399]
[1730954063642,7.75976765,189.83,189.79,2.10692399]
[1730954063954,7.75976765,189.83,189.8,2.10692399]
[1730954064156,7.75976765,189.83,189.81,2.10692399]
[1730954064342,7.75976765,189.83,189.82,2.10692399]
[1730954067258,7.75976765,189.84,189.82,2.10692399]
[1730954067553,7.75976765,189.84,189.78,7.75976765]
[1730954067554,7.75976765,189.84,189.83,2.10692399]
[1730954069246,13.22374934,189.85,189.83,2.10692399]
[1730954069445,13.22374934,189.85,189.84,2.10692399]
[1730954069652,18.49104934,189.85,189.78,7.75976765]
[1730954069857,7.75976765,189.84,189.79,2.10692173]
[1730954070044,7.75976765,189.84,189.8,2.10692173]
[1730954070359,7.75976765,189.83,189.81,2.10692173]
[1730954070562,7.75976765,189.83,189.82,2.10692173]
[1730954072263,7.75976765,189.83,189.77,7.75976765]
[1730954072457,7.75976765,189.83,189.78,2.10713399]
[1730954072661,7.75976765,189.83,189.79,2.10713399]
[1730954072862,7.75976765,189.83,189.8,2.10713399]
[1730954073066,7.75976765,189.83,189.81,2.10713399]
[1730954073271,7.75976765,189.83,189.77,7.75976765]
[1730954073441,7.75976765,189.83,189.78,2.1071581]
[1730954073642,7.75976765,189.83,189.79,2.1071581]
[1730954073859,7.75976765,189.83,189.8,2.1071581]
[1730954074067,7.75976765,189.83,189.81,2.1071581]
[1730954074255,13.22374934,189.85,189.79,7.75976765]
[1730954074461,5.46398169,189.85,189.8,9.86689427]
[1730954074648,5.46398169,189.85,189.81,2.10712662]
[1730954074970,5.46398169,189.85,189.82,2.10712662]
[1730954075168,5.46398169,189.85,189.83,2.10712662]
[1730954075364,5.46398169,189.85,189.81,7.75976765]
[1730954075574,5.46398169,189.85,189.82,2.10694595]
[1730954075745,16.1267,189.89,189.84,7.75976765]
[1730954075956,6.338,189.93,189.77,6.1621]
[1730954075957,5.46665729,189.88,189.86,7.75976765]
[1730954076844,5.46665729,189.88,189.85,7.75976765]
[1730954077064,5.46665729,189.88,189.86,2.10660977]
[1730954077269,5.46665729,189.88,189.85,7.75976765]
[1730954077471,5.46665729,189.88,189.86,2.10659722]
[1730954077648,5.46665729,189.88,189.85,7.75976765]
[1730954077853,5.46665729,189.88,189.86,2.1065963]
[1730954078163,5.46665729,189.88,189.85,7.75976765]
[1730954078367,5.46665729,189.88,189.86,2.10658302]
[1730954078553,5.46665729,189.88,189.85,7.75976765]
[1730954078753,5.46665729,189.88,189.86,2.10658262]
[1730954078949,5.46665729,189.88,189.84,7.75976765]
[1730954079160,5.46665729,189.88,189.81,0.12549]
[1730954079161,5.46665729,189.88,189.78,23.85610079]
[1730954079369,13.22642494,189.88,189.82,7.75976765]
[1730954079675,13.22642494,189.88,189.83,2.10683708]
[1730954079676,7.75976765,189.87,189.83,2.10683708]
[1730954079848,5.46665729,189.88,189.84,2.10688055]
[1730954079849,7.75976765,189.86,189.84,2.10688055]
[1730954080052,7.75976765,189.87,189.81,7.75976765]
[1730954080253,7.75976765,189.87,189.82,2.10691773]
[1730954080471,7.75976765,189.87,189.83,2.10691773]
[1730954080771,13.22642494,189.88,189.84,2.10691773]
[1730954080965,13.22642494,189.88,189.82,7.75976765]
[1730954081273,13.22642494,189.88,189.83,2.10688279]
[1730954081477,7.75976765,189.87,189.84,2.10688279]
[1730954081656,7.75976765,189.87,189.81,7.75976765]
[1730954081857,7.75976765,189.87,189.82,2.10689045]
[1730954082057,7.75976765,189.87,189.83,2.10689045]
[1730954082273,7.75976765,189.87,189.84,2.10689045]
[1730954082477,7.75976765,189.86,189.8,7.75976765]
[1730954082657,7.75976765,189.86,189.81,2.10690309]
[1730954082859,7.75976765,189.86,189.82,2.10690309]
[1730954083068,7.75976765,189.86,189.83,2.10690309]
[1730954083274,7.75976765,189.86,189.84,2.10690309]
[1730954083581,7.75976765,189.86,189.8,7.75976765]
[1730954083881,7.75976765,189.86,189.81,2.10691758]
[1730954084073,7.75976765,189.86,189.82,2.10691758]
[1730954084255,7.75976765,189.86,189.8,7.75976765]
[1730954085183,7.75976765,189.86,189.81,2.10691135]
[1730954085360,7.75976765,189.86,189.8,7.75976765]
[1730954087180,6.76423575,189.88,189.78,23.902374]
[1730954087181,7.75976765,189.87,189.81,9.86667729]
[1730954087476,7.75976765,189.86,189.81,2.10690964]
[1730954087857,7.75976765,189.86,189.8,7.75976765]
[1730954088390,16.6601,189.87,189.78,23.776884]
[1730954088391,7.75976765,189.85,189.78,23.776884]
[1730954088561,7.75976765,189.85,189.78,7.75976765]
[1730954089561,7.75976765,189.85,189.74,23.902374]
[1730954089881,7.75976765,189.85,189.78,7.75976765]
[1730954090268,7.75976765,189.85,189.74,23.902374]
[1730954090468,7.75976765,189.85,189.79,7.75976765]
[1730954090679,7.75976765,189.85,189.74,23.902374]
[1730954090878,7.75976765,189.85,189.79,7.75976765]
[1730954091272,7.75976765,189.85,189.8,2.10695745]
[1730954091464,7.75976765,189.85,189.81,2.10695745]
[1730954091663,7.75976765,189.85,189.82,2.10695745]
[1730954091871,24.41986765,189.87,189.83,2.10695745]
[1730954092188,16.6601,189.87,189.83,7.75976765]
[1730954092392,5.46665729,189.88,189.84,9.86669452]
[1730954092561,7.75976765,189.91,189.85,7.75976765]
[1730954092765,7.75976765,189.89,189.82,23.776884]
[1730954092979,7.75976765,189.9,189.84,7.75976765]
[1730954093161,7.75976765,189.9,189.85,2.10685529]
[1730954093357,7.75976765,189.9,189.84,7.75976765]
[1730954093576,7.75976765,189.9,189.85,2.10686753]
[1730954093861,7.75976765,189.9,189.84,7.75976765]
[1730954094063,7.75976765,189.9,189.85,2.10686525]
[1730954094358,7.75976765,189.9,189.84,7.75976765]
[1730954094556,7.75976765,189.9,189.85,2.10686545]
[1730954094865,7.75976765,189.9,189.84,7.75976765]
[1730954095179,7.75976765,189.9,189.85,2.10686469]
[1730954095382,7.75976765,189.9,189.84,7.75976765]
[1730954097189,7.75976765,189.89,189.76,0.07921679]
[1730954097388,7.75976765,189.88,189.82,7.75976765]
[1730954097688,7.75976765,189.88,189.83,2.10686235]
[1730954097987,7.75976765,189.88,189.84,2.10686235]
[1730954098196,7.75976765,189.88,189.82,7.75976765]
[1730954098368,7.75976765,189.88,189.83,2.10688684]
[1730954098688,7.75976765,189.88,189.84,2.10688684]
[1730954098881,7.75976765,189.88,189.82,7.75976765]
[1730954099075,7.75976765,189.88,189.83,2.10688756]
[1730954099281,7.75976765,189.87,189.84,2.10688756]
[1730954099490,7.75976765,189.87,189.81,7.75976765]
[1730954099665,7.75976765,189.87,189.82,2.10688829]
[1730954099863,7.75976765,189.87,189.83,2.10688829]
[1730954100070,7.75976765,189.88,189.84,2.10688829]
[1730954100288,7.75976765,189.88,189.81,7.75976765]
[1730954100495,7.75976765,189.86,189.82,2.10690141]
[1730954100789,7.75976765,189.85,189.83,2.10690141]
[1730954100965,7.75976765,189.85,189.84,2.10690141]
[1730954102387,7.75976765,189.86,189.84,2.10690141]
[1730954102687,7.75976765,189.86,189.8,7.75976765]
[1730954103089,7.75976765,189.86,189.81,2.10690094]
[1730954103260,7.75976765,189.86,189.82,2.10690094]
[1730954103463,7.75976765,189.86,189.83,2.10690094]
[1730954103664,7.75976765,189.86,189.84,2.10690094]
[1730954103889,7.75976765,189.85,189.75,23.902374]
[1730954104075,7.75976765,189.83,189.77,31.53665165]
[1730954104274,7.75976765,189.84,189.78,9.86674027]
[1730954104490,7.75976765,189.84,189.79,2.10697262]
[1730954104666,7.75976765,189.84,189.8,2.10697262]
[1730954104875,7.75976765,189.84,189.81,2.10697262]
[1730954105191,7.75976765,189.85,189.79,7.75976765]
[1730954105386,7.75976765,189.85,189.8,2.10720726]
[1730954105568,7.75976765,189.85,189.81,2.10720726]
[1730954105768,7.75976765,189.85,189.79,7.75976765]
[1730954106063,7.75976765,189.85,189.8,2.10723352]
[1730954106293,7.75976765,189.85,189.81,2.10723352]
[1730954106473,7.75976765,189.84,189.78,7.75976765]
[1730954106676,7.75976765,189.84,189.79,2.10724155]
[1730954106990,7.75976765,189.85,189.8,2.10724155]
[1730954107165,7.75976765,189.85,189.79,7.75976765]
[1730954107366,7.75976765,189.85,189.8,2.10724228]
[1730954107571,7.75976765,189.85,189.79,7.75976765]
[1730954107878,7.75976765,189.84,189.8,2.10725942]
[1730954108067,7.75976765,189.84,189.78,7.75976765]
[1730954108268,7.75976765,189.85,189.79,9.86702744]
[1730954108475,7.75976765,189.85,189.8,2.10725979]
[1730954108682,7.75976765,189.85,189.81,2.10725979]
[1730954108880,7.75976765,189.85,189.79,7.75976765]
[1730954109076,7.75976765,189.85,189.8,2.10724187]
[1730954109270,7.75976765,189.85,189.81,2.10724171]
[1730954109484,7.75976765,189.85,189.79,7.75976765]
[1730954109692,7.75976765,189.84,189.8,2.1071808]
[1730954109997,15.4608,189.87,189.81,2.1071808]
[1730954110196,7.75976765,189.84,189.75,0.12549]
[1730954110492,7.75976765,189.84,189.78,7.75976765]
[1730954110696,7.75976765,189.84,189.79,2.10720888]
[1730954110881,7.75976765,189.84,189.8,2.10720888]
[1730954111066,7.75976765,189.84,189.78,7.75976765]
[1730954111267,7.75976765,189.84,189.79,2.10729279]
[1730954111500,7.75976765,189.84,189.8,2.10729279]
[1730954111667,7.75976765,189.84,189.78,7.75976765]
[1730954111997,7.75976765,189.84,189.79,2.10729548]
[1730954112297,15.4608,189.87,189.8,2.10729123]
[1730954112492,15.4608,189.87,189.77,7.75976765]
[1730954112700,7.75976765,189.84,189.78,9.86705847]
[1730954112880,7.75976765,189.84,189.79,2.10729082]
[1730954113078,7.75976765,189.84,189.8,2.10726492]
[1730954113281,7.75976765,189.85,189.79,7.75976765]
[1730954113497,7.75976765,189.85,189.8,2.10718828]
[1730954113696,7.75976765,189.85,189.79,7.75976765]
[1730954113898,7.75976765,189.85,189.8,2.10719703]
[1730954114193,7.75976765,189.85,189.81,2.10715286]
[1730954114395,7.75976765,189.85,189.79,7.75976765]
[1730954114596,5.45629099,189.86,189.8,9.8669178]
[1730954114796,5.45629099,189.86,189.81,9.8669178]
[1730954115007,15.4608,189.87,189.82,9.8669178]
[1730954115189,15.4608,189.87,189.83,2.10696334]
[1730954115390,23.22056765,189.87,189.81,7.75976765]
[1730954115587,15.4608,189.87,189.82,2.1069379]
[1730954115796,15.4608,189.87,189.83,2.1069379]
[1730954115987,15.4608,189.87,189.82,7.75976765]
[1730954116190,15.4608,189.87,189.83,2.10693397]
[1730954116387,15.4608,189.87,189.82,7.75976765]
[1730954116598,15.4608,189.87,189.83,2.10695127]
[1730954116809,15.4608,189.87,189.82,7.75976765]
[1730954116985,15.4608,189.87,189.83,2.10695111]
[1730954117185,15.4608,189.87,189.82,7.75976765]
[1730954117484,15.4608,189.87,189.83,2.10695091]
[1730954117806,15.4608,189.87,189.82,7.75976765]
[1730954117996,15.4608,189.87,189.83,2.10689198]
[1730954118196,15.4608,189.87,189.82,7.75976765]
[1730954118499,15.4608,189.87,189.83,2.10689181]
[1730954118705,15.4608,189.87,189.82,7.75976765]
[1730954119006,15.4608,189.87,189.83,2.10689897]
[1730954119191,15.4608,189.87,189.82,7.75976765]
[1730954119389,15.4608,189.87,189.83,2.10689877]
[1730954119587,15.4608,189.87,189.82,7.75976765]
[1730954119802,15.4608,189.87,189.83,2.10689856]
[1730954120012,15.4608,189.87,189.82,7.75976765]
[1730954120307,15.4608,189.87,189.83,2.10689856]
[1730954120481,15.4608,189.87,189.82,7.75976765]
[1730954120678,15.4608,189.87,189.83,2.1068982]
[1730954120986,15.4608,189.87,189.82,7.75976765]
[1730954121179,15.4608,189.87,189.83,2.1068982]
[1730954121377,15.4608,189.87,189.84,2.1068982]
[1730954121590,15.4608,189.87,189.82,7.75976765]
[1730954121905,15.4608,189.87,189.83,2.10689826]
[1730954122105,15.4608,189.87,189.82,7.75976765]
[1730954122407,15.4608,189.87,189.83,2.10689786]
[1730954122586,15.4608,189.87,189.84,2.1068982]
[1730954122881,15.4608,189.87,189.82,7.75976765]
[1730954123087,15.4608,189.87,189.83,2.10689856]
[1730954123289,15.4608,189.87,189.82,7.75976765]
[1730954123579,13.21661796,189.89,189.83,9.86666818]
[1730954123795,5.45685031,189.89,189.84,2.10690053]
[1730954124087,7.75976765,189.89,189.83,7.75976765]
[1730954124287,7.75976765,189.89,189.84,2.10685523]
[1730954124487,7.75976765,189.89,189.83,7.75976765]
[1730954124706,7.75976765,189.89,189.84,2.10685178]
[1730954124902,7.75976765,189.89,189.83,7.75976765]
[1730954125109,7.75976765,189.89,189.84,2.10684998]
[1730954125283,7.75976765,189.89,189.83,7.75976765]
[1730954125599,7.75976765,189.89,189.84,2.10684998]
[1730954125777,7.75976765,189.89,189.85,2.10684998]
[1730954125976,7.75976765,189.89,189.86,2.10684998]
[1730954126189,7.75976765,189.89,189.83,7.75976765]
[1730954126383,7.75976765,189.89,189.84,2.10666324]
[1730954126583,7.75976765,189.89,189.85,2.10666324]
[1730954126790,7.75976765,189.89,189.83,7.75976765]
[1730954126984,7.75976765,189.9,189.84,9.8664594]
[1730954127203,7.75976765,189.9,189.85,2.10669175]
[1730954127396,7.75976765,189.9,189.84,7.75976765]
[1730954127590,7.75976765,189.9,189.85,2.10667622]
[1730954127898,23.88416765,189.91,189.84,7.75976765]
[1730954128097,16.1244,189.91,189.86,7.75976765]
[1730954129108,16.1244,189.91,189.87,2.10650019]
[1730954129284,16.1244,189.91,189.86,7.75976765]
[1730954129484,16.1244,189.91,189.87,2.10643315]
[1730954129809,16.1244,189.91,189.86,7.75976765]
[1730954130112,16.1244,189.91,189.87,2.10643146]
[1730954130313,16.1244,189.91,189.86,7.75976765]
[1730954130493,16.1244,189.91,189.87,2.10643025]
[1730954130809,5.45775603,189.92,189.88,9.86619594]
[1730954130996,7.75976765,189.94,189.88,7.75976765]
[1730954135808,22.02221551,189.95,189.89,31.53665165]
[1730954136109,29.78198316,189.95,189.89,31.53665165]
[1730954136310,7.75976765,189.94,189.89,23.776884]
[1730954136696,7.75976765,189.94,189.81,91.81826794]
[1730954136900,7.75976765,189.94,189.88,7.75976765]
[1730954137201,7.75976765,189.93,189.87,7.75976765]
[1730954137922,7.75976765,189.94,189.88,7.75976765]
[1730954141925,7.75976765,189.93,189.87,7.75976765]
[1730954142109,7.75976765,189.93,189.88,7.75976765]
[1730954144326,7.75976765,189.94,189.88,7.75976765]
[1730954144925,7.75976765,189.93,189.88,7.75976765]
[1730954145229,7.75976765,189.91,189.8,0.07921679]
[1730954145403,7.75976765,189.9,189.84,7.75976765]
[1730954145601,7.75976765,189.9,189.85,2.10642739]
[1730954145804,7.75976765,189.9,189.86,2.10642739]
[1730954146004,7.75976765,189.9,189.84,7.75976765]
[1730954146204,7.75976765,189.9,189.85,2.10645322]
[1730954146506,7.75976765,189.9,189.85,23.776884]
[1730954147013,7.75976765,189.9,189.8,23.776884]
[1730954147221,7.75976765,189.9,189.84,7.75976765]
[1730954147426,7.75976765,189.9,189.85,2.10647804]
[1730954147613,7.75976765,189.9,189.84,7.75976765]
[1730954147807,7.75976765,189.9,189.85,2.10648553]
[1730954148012,7.75976765,189.9,189.84,7.75976765]
[1730954148211,7.75976765,189.9,189.85,2.10649689]
[1730954148539,7.75976765,189.9,189.84,7.75976765]
[1730954148739,7.75976765,189.9,189.85,2.1064991]
[1730954148912,7.75976765,189.9,189.84,7.75976765]
[1730954149112,7.75976765,189.9,189.85,2.10649673]
[1730954149336,7.75976765,189.9,189.84,7.75976765]
[1730954149528,7.75976765,189.9,189.85,2.1064973]
[1730954149832,7.75976765,189.9,189.84,7.75976765]
[1730954150035,7.75976765,189.9,189.85,2.10649849]
[1730954150220,7.75976765,189.9,189.84,7.75976765]
[1730954150422,7.75976765,189.9,189.85,2.10649906]
[1730954150622,7.75976765,189.9,189.84,7.75976765]
[1730954150929,7.75976765,189.9,189.85,2.10649121]
[1730954151128,7.75976765,189.9,189.84,7.75976765]
[1730954151335,7.75976765,189.9,189.85,9.86626495]
[1730954151632,7.75976765,189.9,189.85,7.75976765]
[1730954152525,7.75976765,189.9,189.84,7.75976765]
[1730954153040,7.75976765,189.9,189.85,7.75976765]
[1730954153616,7.75976765,189.9,189.8,54.9414446]
[1730954153817,7.75976765,189.9,189.85,7.75976765]
[1730954155240,7.75976765,189.9,189.84,7.75976765]
[1730954155415,7.75976765,189.9,189.85,2.10648954]
[1730954155610,7.75976765,189.9,189.84,7.75976765]
[1730954155836,7.75976765,189.9,189.85,2.10649633]
[1730954156026,7.75976765,189.9,189.85,7.75976765]
[1730954159928,7.75976765,189.92,189.86,7.75976765]
[1730954161015,5.4539515,189.93,189.88,7.75976765]
[1730954161242,5.4539515,189.93,189.9,7.75976765]
[1730954161424,16.5656,189.95,189.91,7.75976765]
[1730954162944,16.5656,189.95,189.92,7.75976765]
[1730954163634,5.45176132,189.96,189.93,7.75976765]
[1730954164341,5.45176132,189.96,189.92,7.75976765]
[1730954165650,5.45176132,189.96,189.93,7.75976765]
[1730954167951,5.45176132,189.96,189.89,23.776884]
[1730954168129,5.45176132,189.96,189.92,7.75976765]
[1730954170357,5.45176132,189.96,189.91,7.75976765]
[1730954171650,5.45176132,189.96,189.92,7.75976765]
[1730954171852,5.45176132,189.96,189.92,7.70162388]
[1730954174858,5.45176132,189.96,189.93,7.75976765]
[1730954175442,5.45176132,189.96,189.92,7.75976765]
[1730954176261,5.45176132,189.96,189.89,23.776884]
[1730954176448,5.45176132,189.96,189.92,7.75976765]
[1730954176761,5.45176132,189.96,189.91,7.75976765]
[1730954176961,5.45176132,189.96,189.92,7.75976765]
[1730954182748,5.45176132,189.96,189.89,23.776884]
[1730954182963,5.45176132,189.96,189.92,7.75976765]
[1730954186971,5.45176132,189.96,189.93,7.75976765]
[1730954188356,5.45176132,189.96,189.92,7.75976765]
[1730954189768,13.21152897,189.96,189.91,7.75976765]
[1730954190076,13.21152897,189.96,189.92,2.10615606]
[1730954190259,13.21152897,189.96,189.91,7.75976765]
[1730954190449,13.21152897,189.96,189.92,2.1061557]
[1730954190648,13.21152897,189.96,189.91,7.75976765]
[1730954190849,5.45176132,189.96,189.92,2.1061177]
[1730954191073,5.45176132,189.96,189.91,7.75976765]
[1730954191273,5.45176132,189.96,189.92,2.10612002]
[1730954191477,5.45176132,189.96,189.91,7.75976765]
[1730954191674,5.45176132,189.96,189.92,2.10611128]
[1730954191874,5.45176132,189.96,189.91,7.75976765]
[1730954192075,5.45176132,189.96,189.92,2.10610932]
[1730954192274,5.45176132,189.96,189.91,7.75976765]
[1730954192485,5.45176132,189.96,189.92,2.10610932]
[1730954192652,5.45176132,189.96,189.91,7.75976765]
[1730954192852,5.45176132,189.96,189.92,2.10611806]
[1730954193053,5.45176132,189.96,189.91,7.75976765]
[1730954194080,5.45176132,189.96,189.92,9.86585597]
[1730954194249,5.45176132,189.96,189.92,7.75976765]
[1730954196073,5.45176132,189.96,189.94,7.75976765]
[1730954196279,16.35189,190.0,189.95,7.75976765]
[1730954196452,5.45634774,189.99,189.95,7.75976765]
[1730954196654,5.45634774,189.99,189.96,7.75976765]
[1730954196871,5.45634774,189.99,189.97,7.75976765]
[1730954197053,5.45634774,189.99,189.98,7.75976765]
[1730954197482,5.45634774,189.99,189.97,7.75976765]
[1730954198482,5.45634774,189.99,189.98,7.75976765]
[1730954200057,5.45634774,189.99,189.97,7.75976765]
[1730954200769,5.45634774,189.99,189.98,7.75976765]
[1730954201757,5.45634774,189.99,189.96,7.75976765]
[1730954202354,0.09609,190.0,189.92,23.776884]
[1730954202561,7.75976765,189.98,189.93,2.10581789]
[1730954202772,7.75976765,189.97,189.88,0.83568954]
[1730954202973,7.75976765,189.97,189.89,2.10599145]
[1730954203174,7.75976765,189.96,189.9,2.10599145]
[1730954203378,7.75976765,189.96,189.91,9.8657591]
[1730954203562,7.75976765,189.96,189.92,2.10599145]
[1730954203879,7.75976765,189.96,189.91,7.75976765]
[1730954204187,7.75976765,189.96,189.92,2.10613637]
[1730954204391,7.75976765,189.96,189.91,7.75976765]
[1730954204691,7.75976765,189.96,189.92,2.10613637]
[1730954204886,7.75976765,189.96,189.91,7.75976765]
[1730954205083,7.75976765,189.96,189.92,2.1061367]
[1730954205308,7.75976765,189.96,189.91,7.75976765]
[1730954205467,7.75976765,189.96,189.92,2.10611884]
[1730954205668,7.75976765,189.96,189.91,7.75976765]
[1730954205973,7.75976765,189.96,189.92,2.10611739]
[1730954206284,7.75976765,189.96,189.91,7.75976765]
[1730954206478,7.75976765,189.96,189.92,2.10611935]
[1730954206686,7.75976765,189.96,189.91,7.75976765]
[1730954206881,7.75976765,189.96,189.92,2.10611935]
[1730954207073,7.75976765,189.96,189.91,7.75976765]
[1730954207392,7.75976765,189.97,189.92,2.10613648]
[1730954207577,7.75976765,189.97,189.91,7.75976765]
[1730954207886,7.75976765,189.97,189.92,2.10613648]
[1730954208074,7.75976765,189.97,189.91,7.75976765]
[1730954208261,7.75976765,189.97,189.92,2.10613648]
[1730954208462,7.75976765,189.97,189.91,7.75976765]
[1730954208667,16.2299,189.99,189.95,7.75976765]
[1730954208991,16.2299,189.99,189.93,23.776884]
[1730954208992,16.2299,189.99,189.97,7.75976765]
[1730954209479,0.09609,190.0,189.97,7.75976765]
[1730954216497,0.09609,190.0,189.93,24.61025356]
[1730954216686,0.09609,190.0,189.95,7.75976765]
[1730954216889,7.85585765,190.0,189.96,2.10564643]
[1730954217097,7.75976765,189.98,189.97,2.10564643]
[1730954217392,7.75976765,189.98,189.92,0.83336956]
[1730954217693,7.75976765,189.97,189.93,2.10572985]
[1730954217878,7.75976765,189.96,189.88,5.23171448]
[1730954218077,7.75976765,189.97,189.9,0.12549]
[1730954218279,7.75976765,189.97,189.91,9.86578835]
[1730954218498,7.75976765,189.97,189.92,9.86578835]
[1730954218701,7.75976765,189.97,189.93,2.1060207]